fUST/lending_fUST_20250408
["ID","MTS","AMOUNT","RATE_DAILY","PERIOD"]
[357443591,1744068645149,-500.0,0.00024109,2]
[357443592,1744068645159,-500.0,0.00024109,2]
[357443593,1744068645169,-346.44562964,0.00024109,2]
[357443594,1744068645179,-500.0,0.00024109,2]
[357443595,1744068645189,-500.0,0.00024109,2]
[357443596,1744068645199,-500.0,0.00024109,2]
[357443597,1744068645209,-639.43,0.00024109,2]
[357443598,1744068645219,-648.22,0.00024109,2]
[357443599,1744068645229,-500.0,0.00024109,2]
[357443600,1744068645239,-500.0,0.00024109,2]
[357443601,1744068645249,-381.95,0.00024109,2]
[357443602,1744068645259,-500.0,0.00024109,2]
[357443603,1744068645269,-1156.53,0.00024109,2]
[357443604,1744068645279,-668.52,0.00024109,2]
[357443605,1744068645289,-508.72,0.00024109,2]
[357443606,1744068645299,-500.0,0.00024109,2]
[357443607,1744068645309,-500.0,0.00024109,2]
[357443608,1744068645320,-578.27,0.00024109,2]
[357443609,1744068645330,-655.3,0.00024109,2]
[357443610,1744068645340,-500.0,0.00024109,2]
[357443611,1744068645350,-500.0,0.00024109,2]
[357443612,1744068645360,-500.0,0.00024109,2]
[357443613,1744068645370,-1033.46,0.00024109,2]
[357443614,1744068645380,-2332.48,0.00024109,2]
[357443615,1744068645390,-1257.78,0.00024109,2]
[357443616,1744068645400,-500.0,0.00024109,2]
[357443617,1744068645410,-343.3412206,0.00024109,2]
[357443618,1744068645421,-500.0,0.00024109,2]
[357443619,1744068645431,-270.15,0.00024109,2]
[357443620,1744068645441,-705.34,0.00024109,2]
[357443621,1744068645451,-801.52,0.00024109,2]
[357443622,1744068645461,-500.0,0.00024109,2]
[357443623,1744068645471,-2974.1,0.00024109,2]
[357443624,1744068645481,-702.36,0.00024109,2]
[357443625,1744068645492,-622.26,0.00024109,2]
[357443626,1744068645502,-500.0,0.00024109,2]
[357443627,1744068645512,-2885.89,0.00024109,2]
[357443628,1744068645521,-500.0,0.00024109,2]
[357443629,1744068645531,-500.0,0.00024109,2]
[357443630,1744068645541,-644.92,0.00024109,2]
[357443631,1744068645551,-527.56,0.00024109,2]
[357443632,1744068645562,-500.0,0.00024109,2]
[357443633,1744068645575,-500.0,0.00024109,2]
[357443634,1744068645586,-573.97,0.00024109,2]
[357443635,1744068645596,-500.0,0.00024109,2]
[357443636,1744068645607,-278.45,0.00024109,2]
[357443637,1744068645617,-500.0,0.00024109,2]
[357443638,1744068645627,-738.63,0.00024109,2]
[357443639,1744068645638,-500.0,0.00024109,2]
[357443640,1744068645648,-500.0,0.00024109,2]
[357443641,1744068645658,-215.0738,0.00024142,2]
[357443642,1744068645668,-160.0,0.00024327,2]
[357443643,1744068645678,-12527.9349248,0.00024327,2]
[357443644,1744068645689,-419.36665037,0.00024327,2]
[357443645,1744068645699,-160.0,0.00024327,2]
[357443646,1744068645710,-160.0,0.00024327,2]
[357443647,1744068645721,-500.0,0.00024383,2]
[357443648,1744068645731,-500.0,0.00024383,2]
[357443649,1744068645742,-500.0,0.00024383,2]
[357443650,1744068645753,-500.0,0.00024383,2]
[357443651,1744068645763,-500.0,0.00024383,2]
[357443653,1744068645963,-500.0,0.00024383,2]
[357443654,1744068645978,-256.76585631,0.00024383,2]
[357443655,1744068645989,-400.18545027,0.00024383,2]
[357443656,1744068645999,-500.0,0.00024383,2]
[357443657,1744068646008,-639.43,0.00024383,2]
[357443658,1744068646018,-497.87466219,0.00024383,2]
[357443659,1744068646028,-500.0,0.00024383,2]
[357443660,1744068646038,-500.0,0.00024383,2]
[357443661,1744068646048,-1156.53,0.00024383,2]
[357443662,1744068646058,-668.52,0.00024383,2]
[357443663,1744068646067,-508.72,0.00024383,2]
[357443664,1744068646077,-500.0,0.00024383,2]
[357443665,1744068646087,-450.08,0.00024383,2]
[357443666,1744068646097,-578.27,0.00024383,2]
[357443667,1744068646107,-655.3,0.00024383,2]
[357443668,1744068646117,-500.0,0.00024383,2]
[357443669,1744068646128,-500.0,0.00024383,2]
[357443670,1744068646138,-500.0,0.00024383,2]
[357443671,1744068646148,-1033.46,0.00024383,2]
[357443673,1744068646159,-2332.48,0.00024383,2]
[357443674,1744068646170,-1257.78,0.00024383,2]
[357443675,1744068646180,-500.0,0.00024383,2]
[357443676,1744068646191,-500.0,0.00024383,2]
[357443677,1744068646201,-705.34,0.00024383,2]
[357443678,1744068646211,-801.52,0.00024383,2]
[357443679,1744068646221,-500.0,0.00024383,2]
[357443680,1744068646232,-2974.1,0.00024383,2]
[357443681,1744068646242,-702.36,0.00024383,2]
[357443682,1744068646253,-622.26,0.00024383,2]
[357443683,1744068646263,-500.0,0.00024383,2]
[357443684,1744068646273,-2885.89,0.00024383,2]
[357443685,1744068646283,-500.0,0.00024383,2]
[357443686,1744068646293,-500.0,0.00024383,2]
[357443687,1744068646303,-644.92,0.00024383,2]
[357443688,1744068646313,-527.56,0.00024383,2]
[357443689,1744068646323,-500.0,0.00024383,2]
[357443691,1744068646334,-500.0,0.00024383,2]
[357443692,1744068646344,-573.97,0.00024383,2]
[357443693,1744068646354,-500.0,0.00024383,2]
[357443694,1744068646364,-500.0,0.00024383,2]
[357443695,1744068646374,-738.63,0.00024383,2]
[357443696,1744068646384,-500.0,0.00024383,2]
[357443697,1744068646394,-500.0,0.00024383,2]
[357443698,1744068646404,-588.5169816,0.00024557,2]
[357443699,1744068646414,-500.0,0.00024657,2]
[357443700,1744068646424,-500.0,0.00024657,2]
[357443701,1744068646435,-500.0,0.00024657,2]
[357443702,1744068646445,-500.0,0.00024657,2]
[357443703,1744068646455,-500.0,0.00024657,2]
[357443704,1744068646465,-500.0,0.00024657,2]
[357443705,1744068646476,-500.0,0.00024657,2]
[357443706,1744068646486,-639.43,0.00024657,2]
[357443708,1744068646496,-500.0,0.00024657,2]
[357443709,1744068646506,-500.0,0.00024657,2]
[357443710,1744068646516,-1156.53,0.00024657,2]
[357443711,1744068646526,-668.52,0.00024657,2]
[357443712,1744068646536,-508.72,0.00024657,2]
[357443713,1744068646546,-500.0,0.00024657,2]
[357443714,1744068646556,-578.27,0.00024657,2]
[357443715,1744068646569,-655.3,0.00024657,2]
[357443716,1744068646579,-500.0,0.00024657,2]
[357443717,1744068646589,-500.0,0.00024657,2]
[357443718,1744068646599,-500.0,0.00024657,2]
[357443719,1744068646609,-1033.46,0.00024657,2]
[357443720,1744068646619,-2332.48,0.00024657,2]
[357443721,1744068646629,-1257.78,0.00024657,2]
[357443722,1744068646639,-500.0,0.00024657,2]
[357443723,1744068646651,-500.0,0.00024657,2]
[357443724,1744068646662,-705.34,0.00024657,2]
[357443725,1744068646672,-801.52,0.00024657,2]
[357443726,1744068646682,-151.31640487,0.00024657,2]
[357443727,1744068646693,-2974.1,0.00024657,2]
[357443728,1744068646703,-702.36,0.00024657,2]
[357443729,1744068646712,-622.26,0.00024657,2]
[357443730,1744068646722,-500.0,0.00024657,2]
[357443731,1744068646732,-2885.89,0.00024657,2]
[357443732,1744068646742,-500.0,0.00024657,2]
[357443733,1744068646752,-500.0,0.00024657,2]
[357443734,1744068646762,-644.92,0.00024657,2]
[357443735,1744068646772,-527.56,0.00024657,2]
[357443736,1744068646782,-500.0,0.00024657,2]
[357443737,1744068646792,-500.0,0.00024657,2]
[357443738,1744068646802,-573.97,0.00024657,2]
[357443739,1744068646812,-500.0,0.00024657,2]
[357443740,1744068646822,-500.0,0.00024657,2]
[357443741,1744068646832,-738.63,0.00024657,2]
[357443742,1744068646842,-500.0,0.00024657,2]
[357443743,1744068646852,-500.0,0.00024657,2]
[357443744,1744068646861,-500.0,0.00024658,2]
[357443745,1744068646873,-500.0,0.00024658,2]
[357443746,1744068646883,-500.0,0.00024658,2]
[357443747,1744068646892,-500.0,0.00024658,2]
[357443748,1744068646903,-500.0,0.00024658,2]
[357443749,1744068646913,-500.0,0.00024658,2]
[357443750,1744068646923,-500.0,0.00024658,2]
[357443751,1744068646933,-300.55080551,0.00024658,2]
[357443752,1744068646944,-455.31302235,0.00024873,2]
[357443753,1744068646953,-500.0,0.00024873,2]
[357443754,1744068646964,-500.0,0.00024873,2]
[357443755,1744068646973,-372719.247589,0.000249,2]
[357443756,1744068646983,-500.0,0.00024931,2]
[357443757,1744068646994,-500.0,0.00024931,2]
[357443758,1744068647004,-232.76291464,0.00024931,2]
[357443759,1744068647014,-500.0,0.00024931,2]
[357443760,1744068647024,-500.0,0.00024931,2]
[357443761,1744068647035,-500.0,0.00024931,2]
[357443762,1744068647044,-500.0,0.00024931,2]
[357443763,1744068647054,-639.43,0.00024931,2]
[357443764,1744068647064,-500.0,0.00024931,2]
[357443765,1744068647075,-500.0,0.00024931,2]
[357443766,1744068647084,-1156.53,0.00024931,2]
[357443767,1744068647094,-668.52,0.00024931,2]
[357443768,1744068647103,-508.72,0.00024931,2]
[357443769,1744068647113,-500.0,0.00024931,2]
[357443770,1744068647123,-578.27,0.00024931,2]
[357443771,1744068647133,-655.3,0.00024931,2]
[357443772,1744068647143,-500.0,0.00024931,2]
[357443773,1744068647153,-500.0,0.00024931,2]
[357443774,1744068647163,-362.65687587,0.00024931,2]
[357443775,1744068647173,-1033.46,0.00024931,2]
[357443776,1744068647183,-2332.48,0.00024931,2]
[357443777,1744068647194,-1257.78,0.00024931,2]
[357443778,1744068647204,-500.0,0.00024931,2]
[357443779,1744068647213,-500.0,0.00024931,2]
[357443780,1744068647223,-705.34,0.00024931,2]
[357443781,1744068647233,-801.52,0.00024931,2]
[357443782,1744068647244,-2974.1,0.00024931,2]
[357443783,1744068647254,-702.36,0.00024931,2]
[357443784,1744068647264,-500.0,0.00024931,2]
[357443785,1744068647274,-622.26,0.00024931,2]
[357443786,1744068647284,-2885.89,0.00024931,2]
[357443787,1744068647294,-500.0,0.00024931,2]
[357443788,1744068647304,-500.0,0.00024931,2]
[357443789,1744068647314,-644.92,0.00024931,2]
[357443790,1744068647323,-527.56,0.00024931,2]
[357443791,1744068647333,-500.0,0.00024931,2]
[357443792,1744068647343,-500.0,0.00024931,2]
[357443793,1744068647353,-573.97,0.00024931,2]
[357443794,1744068647363,-572.53,0.00024931,2]
[357443795,1744068647373,-463.95670732,0.00024931,2]
[357443796,1744068647384,-738.63,0.00024931,2]
[357443797,1744068647393,-500.0,0.00024931,2]
[357443798,1744068647403,-500.0,0.00024931,2]
[357443799,1744068647413,-71639.33539243,0.00025,2]
[357443800,1744068647423,-1877.78745542,0.00025,2]
[357443801,1744068647433,-500.0,0.00025205,2]
[357443802,1744068647443,-500.0,0.00025205,2]
[357443803,1744068647452,-312.06971226,0.00025205,2]
[357443804,1744068647462,-500.0,0.00025205,2]
[357443805,1744068647473,-500.0,0.00025205,2]
[357443806,1744068647483,-500.0,0.00025205,2]
[357443807,1744068647493,-639.43,0.00025205,2]
[357443808,1744068647503,-500.0,0.00025205,2]
[357443809,1744068647513,-500.0,0.00025205,2]
[357443810,1744068647523,-1156.53,0.00025205,2]
[357443811,1744068647533,-668.52,0.00025205,2]
[357443812,1744068647543,-508.72,0.00025205,2]
[357443813,1744068647552,-500.0,0.00025205,2]
[357443814,1744068647562,-578.27,0.00025205,2]
[357443815,1744068647576,-655.3,0.00025205,2]
[357443816,1744068647586,-500.0,0.00025205,2]
[357443817,1744068647596,-500.0,0.00025205,2]
[357443818,1744068647605,-1033.46,0.00025205,2]
[357443819,1744068647617,-2332.48,0.00025205,2]
[357443820,1744068647627,-1257.78,0.00025205,2]
[357443821,1744068647636,-500.0,0.00025205,2]
[357443822,1744068647646,-500.0,0.00025205,2]
[357443823,1744068647656,-705.34,0.00025205,2]
[357443824,1744068647666,-801.52,0.00025205,2]
[357443825,1744068647675,-2974.1,0.00025205,2]
[357443826,1744068647685,-702.36,0.00025205,2]
[357443827,1744068647694,-500.0,0.00025205,2]
[357443828,1744068647703,-622.26,0.00025205,2]
[357443829,1744068647713,-2885.89,0.00025205,2]
[357443830,1744068647722,-500.0,0.00025205,2]
[357443831,1744068647732,-500.0,0.00025205,2]
[357443832,1744068647741,-644.92,0.00025205,2]
[357443833,1744068647751,-527.56,0.00025205,2]
[357443834,1744068647761,-500.0,0.00025205,2]
[357443835,1744068647770,-500.0,0.00025205,2]
[357443836,1744068647780,-573.97,0.00025205,2]
[357443837,1744068647790,-738.63,0.00025205,2]
[357443838,1744068647800,-500.0,0.00025205,2]
[357443839,1744068647809,-500.0,0.00025205,2]
[357443840,1744068647819,-310.0,0.00025319,2]
[357443841,1744068647829,-470.00754438,0.00025479,2]
[357443842,1744068647839,-458.62577496,0.00025479,2]
[357443843,1744068647848,-392.49378136,0.00025479,2]
[357443844,1744068647858,-227.87790896,0.00025479,2]
[357443845,1744068647867,-616.52774188,0.00025479,2]
[357443846,1744068647876,-639.43,0.00025479,2]
[357443847,1744068647886,-500.0,0.00025479,2]
[357443848,1744068647896,-473.48,0.00025479,2]
[357443849,1744068647908,-1156.53,0.00025479,2]
[357443850,1744068647918,-668.52,0.00025479,2]
[357443851,1744068647928,-508.72,0.00025479,2]
[357443852,1744068647938,-500.0,0.00025479,2]
[357443853,1744068647948,-578.27,0.00025479,2]
[357443854,1744068647957,-655.3,0.00025479,2]
[357443855,1744068647968,-500.0,0.00025479,2]
[357443856,1744068647979,-500.0,0.00025479,2]
[357443857,1744068647989,-1033.46,0.00025479,2]
[357443858,1744068647999,-2332.48,0.00025479,2]
[357443859,1744068648008,-1257.78,0.00025479,2]
[357443860,1744068648018,-500.0,0.00025479,2]
[357443861,1744068648028,-500.0,0.00025479,2]
[357443862,1744068648038,-705.34,0.00025479,2]
[357443863,1744068648048,-801.52,0.00025479,2]
[357443864,1744068648058,-2974.1,0.00025479,2]
[357443865,1744068648068,-702.36,0.00025479,2]
[357443866,1744068648078,-500.0,0.00025479,2]
[357443867,1744068648088,-622.26,0.00025479,2]
[357443868,1744068648099,-2885.89,0.00025479,2]
[357443869,1744068648109,-500.0,0.00025479,2]
[357443870,1744068648119,-500.0,0.00025479,2]
[357443871,1744068648130,-644.92,0.00025479,2]
[357443872,1744068648140,-527.56,0.00025479,2]
[357443873,1744068648151,-500.0,0.00025479,2]
[357443874,1744068648162,-274.8241679,0.00025479,2]
[357443875,1744068648172,-573.97,0.00025479,2]
[357443876,1744068648182,-738.63,0.00025479,2]
[357443877,1744068648192,-500.0,0.00025479,2]
[357443878,1744068648202,-500.0,0.00025479,2]
[357443879,1744068648213,-223.0315306,0.00025511,2]
[357443880,1744068648223,-156.310352,0.0002565,2]
[357443881,1744068648233,-639.43,0.00025753,2]
[357443882,1744068648244,-500.0,0.00025753,2]
[357443883,1744068648254,-1156.53,0.00025753,2]
[357443884,1744068648264,-668.52,0.00025753,2]
[357443885,1744068648274,-508.72,0.00025753,2]
[357443886,1744068648284,-500.0,0.00025753,2]
[357443887,1744068648295,-578.27,0.00025753,2]
[357443888,1744068648305,-655.3,0.00025753,2]
[357443889,1744068648315,-500.0,0.00025753,2]
[357443890,1744068648325,-500.0,0.00025753,2]
[357443891,1744068648335,-1033.46,0.00025753,2]
[357443892,1744068648345,-2332.48,0.00025753,2]
[357443893,1744068648354,-1257.78,0.00025753,2]
[357443894,1744068648366,-500.0,0.00025753,2]
[357443895,1744068648376,-500.0,0.00025753,2]
[357443896,1744068648386,-705.34,0.00025753,2]
[357443897,1744068648396,-801.52,0.00025753,2]
[357443898,1744068648411,-2974.1,0.00025753,2]
[357443899,1744068648425,-702.36,0.00025753,2]
[357443900,1744068648438,-500.0,0.00025753,2]
[357443901,1744068648451,-622.26,0.00025753,2]
[357443902,1744068648464,-2885.89,0.00025753,2]
[357443903,1744068648478,-500.0,0.00025753,2]
[357443904,1744068648491,-315.14,0.00025753,2]
[357443905,1744068648504,-644.92,0.00025753,2]
[357443906,1744068648514,-527.56,0.00025753,2]
[357443907,1744068648526,-500.0,0.00025753,2]
[357443908,1744068648536,-573.97,0.00025753,2]
[357443909,1744068648548,-738.63,0.00025753,2]
[357443910,1744068648561,-498.98199116,0.00025753,2]
[357443911,1744068648576,-500.0,0.00025753,2]
[357443912,1744068648589,-500.0,0.00025812,2]
[357443913,1744068648599,-254.91781883,0.00025812,2]
[357443914,1744068648611,-500.0,0.00025856,2]
[357443915,1744068648623,-49168.13254373,0.00026,30]
[357443916,1744068648636,-349.152,0.00026027,12]
[357443917,1744068648648,-639.43,0.00026027,2]
[357443918,1744068648661,-500.0,0.00026027,2]
[357443919,1744068648673,-1156.53,0.00026027,2]
[357443920,1744068648684,-297.50502017,0.00026027,2]
[357443921,1744068648921,-500.0,0.00022191,2]
[357443922,1744068648933,-500.0,0.00022465,2]
[357443923,1744068648945,-500.0,0.00022739,2]
[357443924,1744068648957,-500.0,0.00023013,2]
[357443925,1744068648968,-500.0,0.00023287,2]
[357443926,1744068648979,-500.0,0.00023561,2]
[357443927,1744068648992,-260.74,0.00023835,2]
[357443928,1744068649004,-371.01497983,0.00026027,2]
[357443929,1744068649016,-508.72,0.00026027,2]
[357443930,1744068649029,-500.0,0.00026027,2]
[357443931,1744068649041,-578.27,0.00026027,2]
[357443932,1744068649053,-655.3,0.00026027,2]
[357443933,1744068649065,-500.0,0.00026027,2]
[357443934,1744068649077,-500.0,0.00026027,2]
[357443935,1744068649089,-1033.46,0.00026027,2]
[357443936,1744068649102,-2332.48,0.00026027,2]
[357443937,1744068649114,-1257.78,0.00026027,2]
[357443938,1744068649124,-500.0,0.00026027,2]
[357443939,1744068649135,-500.0,0.00026027,2]
[357443940,1744068649147,-705.34,0.00026027,2]
[357443941,1744068649159,-801.52,0.00026027,2]
[357443942,1744068649170,-2974.1,0.00026027,2]
[357443943,1744068649180,-702.36,0.00026027,2]
[357443944,1744068649190,-500.0,0.00026027,2]
[357443945,1744068649202,-622.26,0.00026027,2]
[357443946,1744068649213,-2885.89,0.00026027,2]
[357443947,1744068649227,-275.44,0.00026027,2]
[357443948,1744068649238,-644.92,0.00026027,2]
[357443949,1744068649251,-527.56,0.00026027,2]
[357443950,1744068649263,-500.0,0.00026027,2]
[357443951,1744068649275,-573.97,0.00026027,2]
[357443952,1744068649287,-738.63,0.00026027,2]
[357443953,1744068649298,-500.0,0.00026027,2]
[357443954,1744068649308,-639.43,0.00026301,2]
[357443955,1744068649319,-500.0,0.00026301,2]
[357443956,1744068649330,-1156.53,0.00026301,2]
[357443957,1744068649341,-668.52,0.00026301,2]
[357443958,1744068649352,-508.72,0.00026301,2]
[357443959,1744068649363,-500.0,0.00026301,2]
[357443960,1744068649373,-578.27,0.00026301,2]
[357443961,1744068649386,-655.3,0.00026301,2]
[357443962,1744068649397,-500.0,0.00026301,2]
[357443963,1744068649409,-500.0,0.00026301,2]
[357443964,1744068649420,-1033.46,0.00026301,2]
[357443965,1744068649431,-2332.48,0.00026301,2]
[357443966,1744068649442,-1257.78,0.00026301,2]
[357443967,1744068649453,-500.0,0.00026301,2]
[357443968,1744068649464,-500.0,0.00026301,2]
[357443969,1744068649475,-705.34,0.00026301,2]
[357443970,1744068649486,-801.52,0.00026301,2]
[357443971,1744068649496,-2974.1,0.00026301,2]
[357443972,1744068649507,-702.36,0.00026301,2]
[357443973,1744068649519,-442.94,0.00026301,2]
[357443974,1744068649529,-622.26,0.00026301,2]
[357443975,1744068649539,-2885.89,0.00026301,2]
[357443976,1744068649549,-644.92,0.00026301,2]
[357443977,1744068649560,-527.56,0.00026301,2]
[357443978,1744068649575,-500.0,0.00026301,2]
[357443979,1744068649586,-573.97,0.00026301,2]
[357443980,1744068649596,-738.63,0.00026301,2]
[357443981,1744068649607,-500.0,0.00026301,2]
[357443982,1744068649617,-639.43,0.00026575,2]
[357443983,1744068649627,-500.0,0.00026575,2]
[357443984,1744068649638,-1156.53,0.00026575,2]
[357443985,1744068649649,-668.52,0.00026575,2]
[357443986,1744068649660,-508.72,0.00026575,2]
[357443987,1744068649670,-500.0,0.00026575,2]
[357443988,1744068649681,-578.27,0.00026575,2]
[357443989,1744068649691,-655.3,0.00026575,2]
[357443990,1744068649702,-500.0,0.00026575,2]
[357443991,1744068649712,-500.0,0.00026575,2]
[357443992,1744068649722,-1033.46,0.00026575,2]
[357443993,1744068649733,-2332.48,0.00026575,2]
[357443994,1744068649744,-1257.78,0.00026575,2]
[357443995,1744068649754,-500.0,0.00026575,2]
[357443996,1744068649765,-324.12,0.00026575,2]
[357443997,1744068649776,-705.34,0.00026575,2]
[357443998,1744068649786,-801.52,0.00026575,2]
[357443999,1744068649797,-2974.1,0.00026575,2]
[357444000,1744068649807,-702.36,0.00026575,2]
[357444001,1744068649818,-622.26,0.00026575,2]
[357444002,1744068649830,-2885.89,0.00026575,2]
[357444003,1744068649840,-644.92,0.00026575,2]
[357444004,1744068649851,-527.56,0.00026575,2]
[357444005,1744068649862,-500.0,0.00026575,2]
[357444006,1744068649872,-573.97,0.00026575,2]
[357444007,1744068649883,-738.63,0.00026575,2]
[357444008,1744068649893,-500.0,0.00026575,2]
[357444009,1744068649904,-301.0,0.000266,2]
[357444010,1744068649914,-639.43,0.00026849,2]
[357444011,1744068649925,-500.0,0.00026849,2]
[357444012,1744068649935,-1156.53,0.00026849,2]
[357444013,1744068649947,-668.52,0.00026849,2]
[357444014,1744068649957,-508.72,0.00026849,2]
[357444015,1744068649967,-500.0,0.00026849,2]
[357444016,1744068649978,-578.27,0.00026849,2]
[357444017,1744068649988,-655.3,0.00026849,2]
[357444018,1744068649999,-417.02435429,0.00026849,2]
[357444019,1744068650009,-500.0,0.00026849,2]
[357444020,1744068650019,-1033.46,0.00026849,2]
[357444021,1744068650029,-2332.48,0.00026849,2]
[357444022,1744068650040,-1257.78,0.00026849,2]
[357444023,1744068650051,-500.0,0.00026849,2]
[357444024,1744068650061,-705.34,0.00026849,2]
[357444025,1744068650072,-801.52,0.00026849,2]
[357444026,1744068650083,-2974.1,0.00026849,2]
[357444027,1744068650093,-702.36,0.00026849,2]
[357444028,1744068650103,-622.26,0.00026849,2]
[357444029,1744068650114,-2885.89,0.00026849,2]
[357444030,1744068650124,-644.92,0.00026849,2]
[357444031,1744068650135,-527.56,0.00026849,2]
[357444032,1744068650145,-500.0,0.00026849,2]
[357444033,1744068650155,-573.97,0.00026849,2]
[357444034,1744068650166,-738.63,0.00026849,2]
[357444035,1744068650176,-500.0,0.00026849,2]
[357444036,1744068650187,-231.28369723,0.0002688,2]
[357444037,1744068650197,-1000.0,0.00026952,2]
[357444038,1744068650208,-1000.0,0.00026952,2]
[357444039,1744068650218,-1000.0,0.00026952,2]
[357444040,1744068650228,-1000.0,0.00026952,2]
[357444041,1744068650239,-3903.8920938,0.00027,60]
[357444042,1744068650248,-639.43,0.00027123,2]
[357444043,1744068650259,-500.0,0.00027123,2]
[357444044,1744068650270,-1156.53,0.00027123,2]
[357444045,1744068650280,-668.52,0.00027123,2]
[357444046,1744068650291,-508.72,0.00027123,2]
[357444047,1744068650301,-500.0,0.00027123,2]
[357444048,1744068650312,-578.27,0.00027123,2]
[357444049,1744068650322,-655.3,0.00027123,2]
[357444050,1744068650331,-500.0,0.00027123,2]
[357444051,1744068650341,-1033.46,0.00027123,2]
[357444052,1744068650351,-2332.48,0.00027123,2]
[357444053,1744068650361,-1257.78,0.00027123,2]
[357444054,1744068650370,-500.0,0.00027123,2]
[357444055,1744068650380,-705.34,0.00027123,2]
[357444056,1744068650390,-801.52,0.00027123,2]
[357444057,1744068650399,-2974.1,0.00027123,2]
[357444058,1744068650409,-702.36,0.00027123,2]
[357444059,1744068650419,-622.26,0.00027123,2]
[357444060,1744068650428,-2885.89,0.00027123,2]
[357444061,1744068650438,-644.92,0.00027123,2]
[357444062,1744068650447,-527.56,0.00027123,2]
[357444063,1744068650457,-500.0,0.00027123,2]
[357444064,1744068650466,-573.97,0.00027123,2]
[357444065,1744068650476,-738.63,0.00027123,2]
[357444066,1744068650485,-500.0,0.00027123,2]
[357444067,1744068650495,-971.76108345,0.00027397,120]
[357444068,1744068650619,-500.0,0.00021917,2]
[357444069,1744068650629,-500.0,0.00021917,2]
[357444070,1744068650641,-500.0,0.00022191,2]
[357444071,1744068650652,-500.0,0.00022191,2]
[357444072,1744068650663,-500.0,0.00022465,2]
[357444073,1744068650672,-500.0,0.00022739,2]
[357444074,1744068650681,-465.36,0.00023013,2]
[357444075,1744068650691,-1507.25019319,0.00027397,120]
[357444076,1744068650700,-639.43,0.00027397,2]
[357444077,1744068650710,-500.0,0.00027397,2]
[357444078,1744068650720,-500.0,0.00027397,2]
[357444079,1744068650730,-452.638,0.00027397,2]
[357444080,1744068650741,-1156.53,0.00027397,2]
[357444081,1744068650751,-668.52,0.00027397,2]
[357444082,1744068650760,-508.72,0.00027397,2]
[357444083,1744068650771,-500.0,0.00027397,2]
[357444084,1744068650781,-500.0,0.00027397,2]
[357444085,1744068650790,-500.0,0.00027397,2]
[357444086,1744068650800,-500.0,0.00027397,2]
[357444087,1744068650810,-500.0,0.00027397,2]
[357444088,1744068650819,-595.2638,0.00027397,2]
[357444089,1744068650829,-500.0,0.00027397,2]
[357444090,1744068650839,-578.27,0.00027397,2]
[357444091,1744068650849,-655.3,0.00027397,2]
[357444092,1744068650858,-500.0,0.00027397,2]
[357444093,1744068650868,-1033.46,0.00027397,2]
[357444094,1744068650878,-2332.48,0.00027397,2]